fUSD/lending_fUSD_20240527
["ID","MTS","AMOUNT","RATE_DAILY","PERIOD"]
[328050494,1716819051086,-190.94720948,0.00033096,2]
[328050495,1716819051096,-3169.96650349,0.00033108,5]
[328050496,1716819051107,-1622.27476704,0.00033109,10]
[328050497,1716819051118,-170.82833307,0.00033119,2]
[328050498,1716819051129,-623.958231,0.00033122,2]
[328050499,1716819051140,-309.721022,0.00033122,2]
[328050500,1716819051151,-3169.96650349,0.0003315,5]
[328050501,1716819051163,-941.21,0.0003315,7]
[328050502,1716819051173,-1050.33,0.0003315,7]
[328050503,1716819051185,-500.0,0.0003315,7]
[328050504,1716819051196,-3355.46,0.0003315,7]
[328050505,1716819051207,-582.47,0.0003315,7]
[328050506,1716819051218,-500.0,0.0003315,7]
[328050507,1716819051228,-500.0,0.0003315,7]
[328050508,1716819051239,-500.0,0.0003315,7]
[328050509,1716819051248,-680.49,0.0003315,7]
[328050510,1716819051258,-1467.79,0.0003315,7]
[328050511,1716819051403,-630.68,0.0003315,7]
[328050512,1716819051460,-1501.14,0.0003315,7]
[328050513,1716819051472,-616.17,0.0003315,7]
[328050514,1716819051483,-1073.61,0.0003315,7]
[328050515,1716819051492,-1666.03,0.0003315,7]
[328050516,1716819051500,-500.0,0.0003315,7]
[328050517,1716819051510,-710.4,0.0003315,7]
[328050518,1716819051519,-500.0,0.0003315,7]
[328050519,1716819051528,-29558.5083906,0.00033151,2]
[328050520,1716819051537,-2348.093991,0.00033151,2]
[328050521,1716819051547,-694.5382931,0.00033151,2]
[328050522,1716819051556,-244.79101044,0.00033153,2]
[328050523,1716819051566,-1622.27476704,0.00033171,10]
[328050524,1716819051575,-3169.96650349,0.00033191,5]
[328050525,1716819051585,-500.0,0.00033194,7]
[328050526,1716819051594,-500.0,0.00033194,7]
[328050527,1716819051603,-500.0,0.00033194,7]
[328050528,1716819051612,-500.0,0.00033194,7]
[328050529,1716819051622,-3115.89,0.00033194,7]
[328050530,1716819051632,-500.0,0.00033194,7]
[328050531,1716819051641,-891.51,0.00033194,7]
[328050532,1716819051650,-2232.51,0.00033194,7]
[328050533,1716819051659,-1419.25,0.00033194,7]
[328050534,1716819051669,-1370.12,0.00033194,7]
[328050535,1716819051678,-773.54,0.00033194,7]
[328050536,1716819051687,-850.64,0.00033194,7]
[328050537,1716819051696,-820.82,0.00033194,7]
[328050538,1716819051706,-792.72,0.00033194,7]
[328050539,1716819051715,-500.0,0.00033194,7]
[328050540,1716819051724,-1334.86,0.00033194,7]
[328050541,1716819051737,-29679.8497137,0.00033195,2]
[328050542,1716819051746,-2357.7332065,0.00033195,2]
[328050543,1716819051756,-697.3894585,0.00033195,2]
[328050544,1716819051765,-29801.1910368,0.00033196,2]
[328050545,1716819051774,-300.49,0.00033196,7]
[328050546,1716819051783,-500.0,0.00033196,7]
[328050547,1716819051792,-2367.372422,0.00033196,2]
[328050548,1716819051802,-1228.53,0.00033196,7]
[328050549,1716819051811,-630.4,0.00033196,7]
[328050550,1716819051821,-700.2406239,0.00033196,2]
[328050551,1716819051830,-500.0,0.00033196,7]
[328050552,1716819051839,-500.0,0.00033196,7]
[328050553,1716819051848,-2975.92,0.00033196,7]
[328050554,1716819051858,-500.0,0.00033196,7]
[328050555,1716819051872,-500.0,0.00033196,7]
[328050556,1716819051882,-933.78,0.00033196,7]
[328050557,1716819051891,-500.0,0.00033196,7]
[328050558,1716819051903,-500.0,0.00033196,7]
[328050559,1716819051913,-500.0,0.00033196,7]
[328050560,1716819051922,-961.21,0.00033196,7]
[328050561,1716819051931,-500.0,0.00033196,7]
[328050562,1716819051941,-190.94720948,0.00033203,2]
[328050563,1716819051951,-583.27,0.00033217,7]
[328050564,1716819051960,-961.18,0.00033217,7]
[328050565,1716819051969,-500.0,0.00033217,7]
[328050566,1716819051978,-500.0,0.00033217,7]
[328050567,1716819051991,-500.0,0.00033217,7]
[328050568,1716819052000,-500.0,0.00033217,7]
[328050569,1716819052009,-500.0,0.00033217,7]
[328050570,1716819052018,-500.0,0.00033217,7]
[328050571,1716819052027,-5684.33,0.00033217,7]
[328050572,1716819052036,-582.47,0.00033217,7]
[328050573,1716819052045,-536.34,0.00033217,7]
[328050574,1716819052055,-677.88,0.00033217,7]
[328050575,1716819052064,-500.0,0.00033217,7]
[328050576,1716819052073,-1084.72,0.00033217,7]
[328050577,1716819052083,-869.02,0.00033217,7]
[328050578,1716819052093,-680.49,0.00033217,7]
[328050579,1716819052102,-589.05,0.00033217,7]
[328050580,1716819052111,-1467.79,0.00033217,7]
[328050581,1716819052120,-630.68,0.00033217,7]
[328050582,1716819052130,-500.0,0.00033217,7]
[328050583,1716819052139,-925.74,0.00033217,7]
[328050584,1716819052149,-616.17,0.00033217,7]
[328050585,1716819052158,-500.0,0.00033217,7]
[328050586,1716819052167,-500.0,0.00033217,7]
[328050587,1716819052176,-841.17,0.00033217,7]
[328050588,1716819052185,-1073.61,0.00033217,7]
[328050589,1716819052195,-194.21,0.00033217,7]
[328050590,1716819052204,-1666.03,0.00033217,7]
[328050591,1716819052213,-3752.6,0.00033217,7]
[328050592,1716819052224,-710.4,0.00033217,7]
[328050593,1716819052234,-500.0,0.00033218,7]
[328050594,1716819052244,-1228.53,0.00033218,7]
[328050595,1716819052254,-941.21,0.00033218,7]
[328050596,1716819052263,-941.21,0.00033218,7]
[328050597,1716819052273,-630.4,0.00033218,7]
[328050598,1716819052282,-500.0,0.00033218,7]
[328050599,1716819052292,-500.0,0.00033218,7]
[328050600,1716819052301,-878.87,0.00033218,7]
[328050601,1716819052311,-878.87,0.00033218,7]
[328050602,1716819052320,-2975.92,0.00033218,7]
[328050603,1716819052329,-1050.33,0.00033218,7]
[328050604,1716819052338,-1050.33,0.00033218,7]
[328050605,1716819052348,-500.0,0.00033218,7]
[328050606,1716819052357,-500.0,0.00033218,7]
[328050607,1716819052366,-1085.87,0.00033218,7]
[328050608,1716819052375,-1085.87,0.00033218,7]
[328050609,1716819052384,-500.0,0.00033218,7]
[328050610,1716819052394,-552.78,0.00033218,7]
[328050611,1716819052404,-552.78,0.00033218,7]
[328050612,1716819052414,-3355.46,0.00033218,7]
[328050613,1716819052423,-3355.46,0.00033218,7]
[328050614,1716819052432,-500.0,0.00033218,7]
[328050615,1716819052441,-500.0,0.00033218,7]
[328050616,1716819052450,-500.0,0.00033218,7]
[328050617,1716819052460,-933.78,0.00033218,7]
[328050618,1716819052469,-614.38,0.00033218,7]
[328050619,1716819052480,-614.38,0.00033218,7]
[328050620,1716819052491,-500.0,0.00033218,7]
[328050621,1716819052500,-500.0,0.00033218,7]
[328050622,1716819052510,-604.88,0.00033218,7]
[328050623,1716819052518,-604.88,0.00033218,7]
[328050624,1716819052528,-500.0,0.00033218,7]
[328050625,1716819052536,-954.44,0.00033218,7]
[328050626,1716819052545,-954.44,0.00033218,7]
[328050627,1716819052554,-162.3167881,0.00033218,7]
[328050628,1716819052680,-337.6832119,0.00033218,7]
[328050629,1716819052690,-1501.14,0.00033218,7]
[328050630,1716819052699,-1501.14,0.00033218,7]
[328050631,1716819052708,-500.0,0.00033218,7]
[328050632,1716819052717,-387.94,0.00033218,7]
[328050633,1716819052727,-500.0,0.00033218,7]
[328050634,1716819052739,-500.0,0.00033218,7]
[328050635,1716819052748,-432.38,0.00033218,7]
[328050636,1716819052757,-961.21,0.00033218,7]
[328050637,1716819052766,-284.5058881,0.00033218,7]
[328050638,1716819052778,-215.4941119,0.00033218,7]
[328050639,1716819052787,-500.0,0.00033218,7]
[328050640,1716819052796,-500.0,0.00033218,7]
[328050641,1716819052806,-500.0,0.00033218,7]
[328050642,1716819052815,-500.0,0.00033218,7]
[328050643,1716819052825,-500.0,0.00033218,7]
[328050644,1716819052834,-495.06,0.00033218,7]
[328050645,1716819052843,-500.0,0.00033218,7]
[328050646,1716819052852,-500.0,0.00033218,7]
[328050647,1716819052864,-500.0,0.00033218,7]
[328050648,1716819052874,-543.88,0.00033218,7]
[328050649,1716819052883,-543.88,0.00033218,7]
[328050650,1716819052892,-500.0,0.00033218,7]
[328050651,1716819052903,-500.0,0.00033218,7]
[328050652,1716819052912,-500.0,0.00033219,7]
[328050653,1716819052922,-500.0,0.00033219,7]
[328050654,1716819052931,-500.0,0.00033219,7]
[328050655,1716819052943,-500.0,0.00033219,7]
[328050656,1716819052952,-163.98,0.00033219,7]
[328050657,1716819052962,-500.0,0.00033231,7]
[328050658,1716819052971,-500.0,0.00033231,7]
[328050659,1716819052980,-500.0,0.00033231,7]
[328050660,1716819052990,-348.65,0.00033231,7]
[328050661,1716819052999,-3115.89,0.00033231,7]
[328050662,1716819053008,-500.0,0.00033231,7]
[328050663,1716819053017,-891.51,0.00033231,7]
[328050664,1716819053026,-116.93415552,0.00033231,7]
[328050665,1716819053040,-346.30519082,0.00033231,7]
[328050666,1716819053051,-1392.09073955,0.00033231,7]
[328050667,1716819053062,-377.17991411,0.00033231,7]
[328050668,1716819053072,-1419.25,0.00033231,7]
[328050669,1716819053082,-1370.12,0.00033231,7]
[328050670,1716819053091,-773.54,0.00033231,7]
[328050671,1716819053100,-850.64,0.00033231,7]
[328050672,1716819053110,-820.82,0.00033231,7]
[328050673,1716819053120,-792.72,0.00033231,7]
[328050674,1716819053130,-500.0,0.00033231,7]
[328050675,1716819053139,-835.48495418,0.00033231,7]
[328050676,1716819053152,-499.37504582,0.00033231,7]
[328050677,1716819053161,-583.27,0.00033232,7]
[328050678,1716819053171,-9521.22068049,0.00033232,2]
[328050679,1716819053182,-4665.76292624,0.00033232,2]
[328050680,1716819053192,-961.18,0.00033232,7]
[328050681,1716819053201,-500.0,0.00033232,7]
[328050682,1716819053211,-500.0,0.00033232,7]
[328050683,1716819053220,-500.0,0.00033232,7]
[328050684,1716819053231,-500.0,0.00033232,7]
[328050685,1716819053241,-500.0,0.00033232,7]
[328050686,1716819053250,-2057.63507385,0.00033232,7]
[328050687,1716819053281,39256.37547207,0.00013973,2]
[328050688,1716819053294,-3130.15,0.00033232,7]
[328050689,1716819053307,-467.14355168,0.00033232,7]
[328050690,1716819053318,-29.40137447,0.00033232,7]
[328050691,1716819053327,-536.34,0.00033232,7]
[328050692,1716819053337,-677.88,0.00033232,7]
[328050693,1716819053347,-1084.72,0.00033232,7]
[328050694,1716819053357,-869.02,0.00033232,7]
[328050695,1716819053367,-500.0,0.00033232,7]
[328050696,1716819053376,-925.74,0.00033232,7]
[328050697,1716819053386,-500.0,0.00033232,7]
[328050698,1716819053396,-85.54821865,0.00033232,7]
[328050699,1716819053407,-307.44854805,0.00033232,7]
[328050700,1716819053418,-107.0032333,0.00033232,7]
[328050701,1716819053427,-841.17,0.00033232,7]
[328050702,1716819053437,-3752.6,0.00033232,7]
[328050703,1716819053447,-274.18046785,0.00033232,2]
[328050704,1716819053456,-14186.98360673,0.00033233,2]
[328050705,1716819053465,-14186.98360673,0.00033233,2]
[328050706,1716819053475,-1622.27476704,0.00033233,10]
[328050707,1716819053485,-244.79101044,0.00033233,2]
[328050708,1716819053494,-3405.00236836,0.00033233,2]
[328050709,1716819053503,-3169.96650349,0.00033233,5]
[328050710,1716819053512,-29922.53236,0.00033237,2]
[328050711,1716819053522,-2377.0116374,0.00033237,2]
[328050712,1716819053531,-703.0917892,0.00033237,2]
[328050713,1716819053540,-163.0,0.0003325,3]
[328050714,1716819053550,-155.56899152,0.00033256,4]
[328050715,1716819053560,-155.4460969,0.00033256,4]
[328050716,1716819053569,-205.01098892,0.00033256,4]
[328050717,1716819053579,-230.06640105,0.00033256,4]
[328050718,1716819053589,-155.68407006,0.00033256,4]
[328050719,1716819053599,-155.62786554,0.00033256,4]
[328050720,1716819053609,-219.93330849,0.00033256,4]
[328050721,1716819053618,-2456.19695707,0.00033256,4]
[328050722,1716819053627,-4349.5364756,0.00033256,4]
[328050723,1716819053636,-208.5822665,0.00033256,4]
[328050724,1716819053646,-222.84697524,0.00033256,4]
[328050725,1716819053657,-155.0,0.00033256,4]
[328050726,1716819053666,-155.51525622,0.00033256,4]
[328050727,1716819053675,-408.3633624,0.00033256,4]
[328050728,1716819053685,-247.76966541,0.00033256,4]
[328050729,1716819053695,-189.37838376,0.00033256,4]
[328050730,1716819053704,-1446.67448387,0.00033256,4]
[328050731,1716819053714,-2061.51629876,0.00033256,4]
[328050732,1716819053723,-196.05952301,0.00033256,4]
[328050733,1716819053733,-500.0,0.00033259,7]
[328050734,1716819053742,-582.47,0.00033259,7]
[328050735,1716819053751,-500.0,0.00033259,7]
[328050736,1716819053760,-680.49,0.00033259,7]
[328050737,1716819053770,-1467.79,0.00033259,7]
[328050738,1716819053780,-630.68,0.00033259,7]
[328050739,1716819053791,-616.17,0.00033259,7]
[328050740,1716819053800,-1073.61,0.00033259,7]
[328050741,1716819053810,-1666.03,0.00033259,7]
[328050742,1716819053820,-710.4,0.00033259,7]
[328050743,1716819053829,-500.0,0.0003326,7]
[328050744,1716819053839,-1228.53,0.0003326,7]
[328050745,1716819053849,-630.4,0.0003326,7]
[328050746,1716819053861,-500.0,0.0003326,7]
[328050747,1716819053873,-500.0,0.0003326,7]
[328050748,1716819053883,-2975.92,0.0003326,7]
[328050749,1716819053892,-304.44653579,0.0003326,7]
[328050750,1716819053902,-500.0,0.0003326,7]
[328050751,1716819053912,-933.78,0.0003326,7]
[328050752,1716819053921,-500.0,0.0003326,7]
[328050753,1716819053931,-500.0,0.0003326,7]
[328050754,1716819053941,-151.21712172,0.0003326,7]
[328050755,1716819053952,-961.21,0.0003326,7]
[328050756,1716819053962,-500.0,0.0003326,7]
[328050757,1716819053971,-30043.8736831,0.0003328,2]
[328050758,1716819053981,-2386.6508529,0.0003328,2]
[328050759,1716819053992,-705.9429546,0.0003328,2]
[328050760,1716819054001,-2700.0,0.000333,30]
[328050761,1716819054011,-150.0,0.000333,7]
[328050762,1716819054021,-941.21,0.00033302,7]
[328050763,1716819054031,-941.21,0.00033302,7]
[328050764,1716819054042,-583.27,0.00033302,7]
[328050765,1716819054052,-961.18,0.00033302,7]
[328050766,1716819054062,-878.87,0.00033302,7]
[328050767,1716819054071,-500.0,0.00033302,7]
[328050768,1716819054081,-1050.33,0.00033302,7]
[328050769,1716819054090,-1050.33,0.00033302,7]
[328050770,1716819054099,-500.0,0.00033302,7]
[328050771,1716819054109,-500.0,0.00033302,7]
[328050772,1716819054119,-500.0,0.00033302,7]
[328050773,1716819054128,-1085.87,0.00033302,7]
[328050774,1716819054138,-500.0,0.00033302,7]
[328050775,1716819054147,-500.0,0.00033302,7]
[328050776,1716819054157,-552.78,0.00033302,7]
[328050777,1716819054166,-475.22736837,0.00033302,7]
[328050778,1716819054175,-5684.33,0.00033302,7]
[328050779,1716819054185,-3355.46,0.00033302,7]
[328050780,1716819054195,-3355.46,0.00033302,7]
[328050781,1716819054204,-582.47,0.00033302,7]
[328050782,1716819054213,-500.0,0.00033302,7]
[328050783,1716819054223,-500.0,0.00033302,7]
[328050784,1716819054234,-500.0,0.00033302,7]
[328050785,1716819054244,-536.34,0.00033302,7]
[328050786,1716819054253,-295.81,0.00033302,7]
[328050787,1716819054262,-614.38,0.00033302,7]
[328050788,1716819054271,-677.88,0.00033302,7]
[328050789,1716819054281,-500.0,0.00033302,7]
[328050790,1716819054290,-500.0,0.00033302,7]
[328050791,1716819054300,-500.0,0.00033302,7]
[328050792,1716819054309,-3115.89,0.00033302,7]
[328050793,1716819054319,-1084.72,0.00033302,7]
[328050794,1716819054328,-869.02,0.00033302,7]
[328050795,1716819054338,-680.49,0.00033302,7]
[328050796,1716819054348,-500.0,0.00033302,7]
[328050797,1716819054357,-604.88,0.00033302,7]
[328050798,1716819054368,-823.40743577,0.00033302,7]
[328050799,1716819054380,-644.38256423,0.00033302,7]
[328050800,1716819054390,-891.51,0.00033302,7]
[328050801,1716819054400,-954.44,0.00033302,7]
[328050802,1716819054411,-2232.51,0.00033302,7]
[328050803,1716819054421,-630.68,0.00033302,7]
[328050804,1716819054432,-500.0,0.00033302,7]
[328050805,1716819054443,-1501.14,0.00033302,7]
[328050806,1716819054452,-1501.14,0.00033302,7]
[328050807,1716819054462,-925.74,0.00033302,7]
[328050808,1716819054472,-1419.25,0.00033302,7]
[328050809,1716819054482,-616.17,0.00033302,7]
[328050810,1716819054505,-500.0,0.00033302,7]
[328050811,1716819054515,-500.0,0.00033302,7]
[328050812,1716819054525,-500.0,0.00033302,7]
[328050813,1716819054535,-1370.12,0.00033302,7]
[328050814,1716819054545,-841.17,0.00033302,7]
[328050815,1716819054555,-1073.61,0.00033302,7]
[328050816,1716819054565,-500.0,0.00033302,7]
[328050817,1716819054576,-500.0,0.00033302,7]
[328050818,1716819054586,-773.54,0.00033302,7]
[328050819,1716819054596,-1666.03,0.00033302,7]
[328050820,1716819054794,-3752.6,0.00033302,7]
[328050821,1716819054804,-850.64,0.00033302,7]
[328050822,1716819054814,-710.4,0.00033302,7]
[328050823,1716819054824,-820.82,0.00033302,7]
[328050824,1716819054834,-414.37,0.00033302,7]
[328050825,1716819054844,-792.72,0.00033302,7]
[328050826,1716819054854,-543.88,0.00033302,7]
[328050827,1716819054867,-500.0,0.00033302,7]
[328050828,1716819054879,-500.0,0.00033302,7]
[328050829,1716819054889,-1334.86,0.00033302,7]
[328050830,1716819054901,-500.0,0.00033303,7]
[328050831,1716819054911,-500.0,0.00033303,7]
[328050832,1716819054922,-253.14050459,0.00033303,7]
[328050833,1716819054935,-246.85949541,0.00033303,7]
[328050834,1716819054947,-500.0,0.00033303,7]
[328050835,1716819054957,-500.0,0.00033303,7]
[328050836,1716819054967,-500.0,0.00033303,7]
[328050837,1716819054976,-500.0,0.00033303,7]
[328050838,1716819054987,-500.0,0.00033303,7]
[328050839,1716819054997,-232.13439694,0.00033303,7]
[328050840,1716819055007,-329.67416844,0.00033303,7]
[328050841,1716819055019,-898.85583156,0.00033303,7]
[328050842,1716819055029,-1228.53,0.00033303,7]
[328050843,1716819055039,-1228.53,0.00033303,7]
[328050844,1716819055049,-1228.53,0.00033303,7]
[328050845,1716819055058,-1228.53,0.00033303,7]
[328050846,1716819055067,-1228.53,0.00033303,7]
[328050847,1716819055077,-554.51336844,0.00033303,7]
[328050848,1716819055089,-310.57650958,0.00033303,7]
[328050849,1716819055101,-363.44012198,0.00033303,7]
[328050850,1716819055111,-181.47423396,0.00033303,7]
[328050851,1716819055122,-1047.05576604,0.00033303,7]
[328050852,1716819055132,-1228.53,0.00033303,7]
[328050853,1716819055141,-1228.53,0.00033303,7]
[328050854,1716819055151,-243.52423399,0.00033303,7]
[328050855,1716819055162,-985.00576601,0.00033303,7]
[328050856,1716819055172,-1228.53,0.00033303,7]
[328050857,1716819055181,-1228.53,0.00033303,7]
[328050858,1716819055191,-1228.53,0.00033303,7]
[328050859,1716819055200,-1228.55443334,0.00033303,7]
[328050860,1716819055209,-630.4,0.00033303,7]
[328050861,1716819055219,-630.4,0.00033303,7]
[328050862,1716819055229,-630.4,0.00033303,7]
[328050863,1716819055241,-630.4,0.00033303,7]
[328050864,1716819055251,-630.4,0.00033303,7]
[328050865,1716819055260,-630.4,0.00033303,7]
[328050866,1716819055271,-630.4,0.00033303,7]
[328050867,1716819055280,-630.4,0.00033303,7]
[328050868,1716819055290,-630.4,0.00033303,7]
[328050869,1716819055299,-630.4,0.00033303,7]
[328050870,1716819055309,-630.4,0.00033303,7]
[328050871,1716819055319,-630.4,0.00033303,7]
[328050872,1716819055329,-341.94980065,0.00033303,7]
[328050873,1716819065742,31275.62153052,0.00013973,2]
[328050874,1716819071969,540.16800009,0.00013973,2]
[328050875,1716819074432,-150.0,0.00033987,120]
[328050876,1716819074466,-274.015,0.00034,120]
[328050878,1716819892859,-3000000.0,0.00033424,60]
[328050879,1716819898293,-3000000.0,0.00033424,60]
[328050880,1716819902719,-3000000.0,0.00033424,60]
[328050881,1716819906059,-3000000.0,0.00033424,60]
[328050882,1716819913278,-3000000.0,0.00033424,60]
[328050883,1716820039130,-884.48901812,0.00017254,2]
[328050884,1716820039151,-1578.34899365,0.00017255,2]
[328050900,1716820232066,-4434.27293987,0.00017259,2]
[328050901,1716820232076,-150.0,0.00017807,2]
[328050902,1716820232086,-150.0,0.00017807,2]
[328050903,1716820232096,-1050.0,0.00021,2]
[328050904,1716820232105,-242.08,0.00027015,2]
[328050905,1716820232115,-1665.14,0.00027015,2]
[328050906,1716820232125,-358.56,0.00027015,2]
[328050907,1716820232135,-499.99,0.00027015,2]
[328050908,1716820232145,-224.99,0.00027015,8]
[328050909,1716820232155,-732.44,0.00027015,2]
[328050910,1716820232164,-154.41114779,0.00027515,2]
[328050911,1716820232173,-500.0,0.00028102,2]
[328050912,1716820232183,-362.85,0.00028425,2]
[328050913,1716820232193,-500.0,0.00029198,2]
[328050914,1716820232202,-250.0,0.00029471,2]
[328050915,1716820232212,-250.0,0.00029477,2]
[328050916,1716820232227,-2315.69,0.00029715,2]
[328050917,1716820232236,-851.0,0.000298,5]
[328050918,1716820232246,-171.32,0.00030149,2]
[328050919,1716820232257,-500.0,0.00030294,10]
[328050920,1716820232269,-500.0,0.00030343,3]
[328050921,1716820232277,-794.01,0.00030453,2]
[328050922,1716820232286,-166.33000667,0.000306,7]
[328050923,1716820232297,-362.85,0.00030689,2]
[328050924,1716820232309,-1126.2080859,0.0003103,5]
[328050925,1716820232318,-500.0,0.0003139,10]
[328050926,1716820232328,-1000.0,0.00031888,2]
[328050927,1716820232337,-1000.0,0.00031888,2]
[328050928,1716820232347,-1000.0,0.00031888,2]
[328050929,1716820232356,-1000.0,0.00031888,2]
[328050930,1716820232365,-1000.0,0.00031888,2]
[328050931,1716820232374,-1000.0,0.00031888,2]
[328050932,1716820232384,-1000.0,0.00031888,2]
[328050933,1716820232393,-1000.0,0.00031888,2]
[328050934,1716820232402,-1000.0,0.00031888,2]
[328050936,1716820232412,-1000.0,0.00031888,2]
[328050938,1716820232421,-1000.0,0.00031888,2]
[328050939,1716820232430,-1049.0,0.00031888,2]
[328050941,1716820232439,-1126.20808589,0.00032088,5]
[328050943,1716820232449,-12522.83,0.00032188,2]
[328050945,1716820232458,-12522.83,0.00032399,2]
[328050947,1716820232468,-2315.69,0.00032455,2]
[328050949,1716820232477,-500.0,0.00032486,10]
[328050951,1716820232486,-608.471,0.00032563,2]
[328050953,1716820232495,-166.42511904,0.00032575,2]
[328050955,1716820232504,-1725.6432,0.00032575,2]
[328050957,1716820232516,-180.0,0.00032603,2]
[328050958,1716820232526,-1173.12,0.00032665,10]
[328050959,1716820232535,-977.6,0.00032665,10]
[328050960,1716820232544,-814.66,0.00032665,10]
[328050961,1716820232553,-678.89,0.00032665,10]
[328050962,1716820232563,-248.27931509,0.00032673,4]
[328050963,1716820232573,-1880.88767585,0.00032673,4]
[328050964,1716820232583,-155.0,0.00032673,4]
[328050965,1716820232592,-180.11120225,0.00032673,4]
[328050966,1716820232601,-2331.21370194,0.00032674,4]
[328050967,1716820232611,-5774.1088,0.00032675,2]
[328050968,1716820232621,-58453.57761029,0.00032675,2]
[328050969,1716820232632,-61719.87974585,0.00032675,2]
[328050970,1716820232645,-6939.76641518,0.00032675,2]
[328050971,1716820232656,-18850.88972044,0.00032675,2]
[328050972,1716820232668,-6157.3852,0.00032675,2]
[328050973,1716820232679,-264.0,0.00032675,2]
[328050974,1716820232691,-6855.0,0.00032675,2]
[328050975,1716820232703,-6000.0,0.00032675,2]
[328050976,1716820232715,-34047.5,0.00032675,2]
[328050985,1716820237963,-50000.0,0.000325,2]
[328050989,1716820237973,-22458.30285191,0.00032675,2]
[328050999,1716820238218,-23253.69845633,0.00032675,2]
[328051000,1716820238228,-257.207,0.00032675,2]
[328051001,1716820238238,-7500.0,0.00032775,2]
[328051002,1716820238247,-303.29216816,0.00032776,2]
[328051003,1716820238257,-166.42511901,0.00032825,2]
[328051004,1716820238268,-155.0,0.00032874,4]
[328051005,1716820238277,-240.98288585,0.00032875,4]
[328051006,1716820238287,-168.04127238,0.00032875,4]
[328051007,1716820238297,-1247.9927,0.00032875,4]
[328051008,1716820238306,-717.36039825,0.00032875,21]
[328051009,1716820238319,-15936.48178993,0.00032875,21]
[328051010,1716820238329,-455.08745223,0.00032876,7]
[328051011,1716820238339,-337.29571537,0.00032876,7]
[328051012,1716820238348,-500.0,0.00032876,7]
[328051013,1716820238357,-599.34694733,0.00032876,7]
[328051014,1716820238367,-500.0,0.00032876,7]
[328051015,1716820238376,-469.33234483,0.00032876,7]
[328051016,1716820238386,-500.0,0.00032876,7]
[328051017,1716820238395,-500.0,0.00032876,7]
[328051018,1716820238405,-181.92,0.00032876,7]
[328051019,1716820238414,-380.89482681,0.00032876,7]
[328051020,1716820238424,-169.7170352,0.00032876,7]
[328051021,1716820238433,-500.0,0.00032876,7]
[328051022,1716820238442,-500.0,0.00032876,7]
[328051023,1716820238452,-588.18,0.00032876,7]
[328051024,1716820238461,-1677.73,0.00032876,7]
[328051025,1716820238470,-588.18,0.00032876,7]
[328051026,1716820238480,-1677.73,0.00032876,7]
[328051027,1716820238489,-497.0,0.00032876,7]
[328051028,1716820238498,-500.0,0.00032876,7]
[328051029,1716820238508,-500.0,0.00032876,7]
[328051030,1716820238519,-500.0,0.00032876,7]
[328051031,1716820238528,-500.0,0.00032876,7]
[328051032,1716820238537,-520.64,0.00032876,7]
[328051033,1716820238546,-500.0,0.00032876,7]
[328051034,1716820238555,-500.0,0.00032876,7]
[328051035,1716820238565,-500.0,0.00032876,7]
[328051036,1716820238575,-500.0,0.00032876,7]
[328051037,1716820238584,-500.0,0.00032876,7]
[328051038,1716820238593,-500.0,0.00032876,7]
[328051039,1716820238603,-583.61,0.00032876,7]
[328051040,1716820238612,-583.61,0.00032876,7]